[Event "Late-Titled-Tuesday-Blitz-July-09-2024"]
[Site "Chess.com"]
[Date "2024.07.09"]
[Round "4"]
[White "Paladin61"]
[Black "Truequitos"]
[Result "1-0"]
[WhiteElo "2732"]
[BlackElo "2540"]
[TimeControl "180+1"]
[EndTime "14:39:55 PDT"]
[Termination "Paladin61 won on time"]

1. c4 {[%clk 0:02:59]} 1... c6 {[%clk 0:02:58.8]} 2. e4 {[%clk 0:02:45]} 2... d5
{[%clk 0:02:56.9]} 3. exd5 {[%clk 0:02:43.8]} 3... cxd5 {[%clk 0:02:57.8]} 4.
cxd5 {[%clk 0:02:41.7]} 4... Nf6 {[%clk 0:02:57.7]} 5. Nc3 {[%clk 0:02:32.2]}
5... Nxd5 {[%clk 0:02:55.1]} 6. Nf3 {[%clk 0:02:30.9]} 6... g6 {[%clk
0:02:54.6]} 7. Bb5+ {[%clk 0:02:17.8]} 7... Nc6 {[%clk 0:02:50.3]} 8. Ne5 {[%clk
0:02:15.3]} 8... Qd6 {[%clk 0:02:46.5]} 9. d4 {[%clk 0:02:08.9]} 9... Bg7 {[%clk
0:02:25.2]} 10. O-O {[%clk 0:01:27.9]} 10... Nxc3 {[%clk 0:02:11.9]} 11. bxc3
{[%clk 0:01:25.9]} 11... O-O {[%clk 0:02:05.7]} 12. Bxc6 {[%clk 0:01:17.4]}
12... bxc6 {[%clk 0:02:06.4]} 13. Re1 {[%clk 0:01:17.1]} 13... c5 {[%clk
0:02:03.8]} 14. Ba3 {[%clk 0:01:17]} 14... Rd8 {[%clk 0:01:48.2]} 15. Qf3 {[%clk
0:01:09.2]} 15... Bxe5 {[%clk 0:01:35.8]} 16. Rxe5 {[%clk 0:00:55.4]} 16... Qb8
{[%clk 0:01:18.1]} 17. Bxc5 {[%clk 0:00:37.5]} 17... Qb2 {[%clk 0:01:11.7]} 18.
Rae1 {[%clk 0:00:35.5]} 18... Bb7 {[%clk 0:01:10.3]} 19. Qf4 {[%clk 0:00:32]}
19... Qxc3 {[%clk 0:01:02.1]} 20. Rxe7 {[%clk 0:00:31.1]} 20... Bd5 {[%clk
0:00:58.8]} 21. h4 {[%clk 0:00:31]} 21... h5 {[%clk 0:00:34.9]} 22. Qf6 {[%clk
0:00:20.4]} 22... Rac8 {[%clk 0:00:27]} 23. R1e3 {[%clk 0:00:14.1]} 23... Qa1+
{[%clk 0:00:18.4]} 24. Kh2 {[%clk 0:00:13.3]} 24... Qxa2 {[%clk 0:00:18.9]} 25.
Rg3 {[%clk 0:00:13]} 25... Qc2 {[%clk 0:00:16.5]} 26. Rxa7 {[%clk 0:00:10.3]}
26... Qe4 {[%clk 0:00:14.7]} 27. f3 {[%clk 0:00:08.9]} 27... Qc2 {[%clk
0:00:14.1]} 28. Re7 {[%clk 0:00:05.6]} 28... Rc6 {[%clk 0:00:13.6]} 29. Qe5
{[%clk 0:00:04.4]} 29... Re6 {[%clk 0:00:11.7]} 30. Rxe6 {[%clk 0:00:04.2]}
30... Bxe6 {[%clk 0:00:12.3]} 31. Qf6 {[%clk 0:00:03.7]} 31... Re8 {[%clk
0:00:09.6]} 32. Bd6 {[%clk 0:00:02.9]} 32... Qf5 {[%clk 0:00:07.6]} 33. Be5
{[%clk 0:00:03.3]} 33... Qxf6 {[%clk 0:00:07.5]} 34. Bxf6 {[%clk 0:00:04.2]}
34... Bd5 {[%clk 0:00:06.9]} 35. Rg5 {[%clk 0:00:04.1]} 35... Ba2 {[%clk
0:00:04.9]} 36. Ra5 {[%clk 0:00:04]} 36... Be6 {[%clk 0:00:04.1]} 37. d5 {[%clk
0:00:04.4]} 37... Bd7 {[%clk 0:00:04.4]} 38. d6 {[%clk 0:00:04.7]} 38... Kh7
{[%clk 0:00:02]} 39. Ra7 {[%clk 0:00:04.7]} 39... Be6 {[%clk 0:00:02]} 40. d7
{[%clk 0:00:04.2]} 40... Bxd7 {[%clk 0:00:02.4]} 41. Rxd7 {[%clk 0:00:04.1]}
41... Rf8 {[%clk 0:00:02.6]} 42. Kg3 {[%clk 0:00:04.5]} 42... Kg8 {[%clk
0:00:01.9]} 43. Kf4 {[%clk 0:00:04.9]} 43... Re8 {[%clk 0:00:01.8]} 44. Rd8
{[%clk 0:00:05.1]} 44... Kf8 {[%clk 0:00:01.5]} 45. Bg7+ {[%clk 0:00:04.5]}
45... Ke7 {[%clk 0:00:02]} 46. Bf6+ {[%clk 0:00:04.4]} 46... Kf8 {[%clk
0:00:02.5]} 47. Kg5 {[%clk 0:00:04.4]} 47... Rxd8 {[%clk 0:00:02.1]} 48. Bxd8
{[%clk 0:00:04.6]} 1-0

[Event "Late-Titled-Tuesday-Blitz-July-09-2024"]
[Site "Chess.com"]
[Date "2024.07.09"]
[Round "4"]
[White "Teyarty"]
[Black "Giorno"]
[Result "1-0"]
[WhiteElo "2300"]
[BlackElo "2520"]
[TimeControl "180+1"]
[EndTime "14:39:55 PDT"]
[Termination "Teyarty won on time"]

1. e4 {[%clk 0:02:54.5]} 1... d5 {[%clk 0:02:58.7]} 2. exd5 {[%clk 0:02:54.5]}
2... Qxd5 {[%clk 0:02:58.8]} 3. Nf3 {[%clk 0:02:54.9]} 3... Bg4 {[%clk
0:02:57.4]} 4. Be2 {[%clk 0:02:55.2]} 4... Nc6 {[%clk 0:02:57.5]} 5. c3 {[%clk
0:02:54.9]} 5... O-O-O {[%clk 0:02:56.1]} 6. Qb3 {[%clk 0:02:54.6]} 6... Qxb3
{[%clk 0:02:46.1]} 7. axb3 {[%clk 0:02:55.5]} 7... e5 {[%clk 0:02:44.5]} 8. Ng5
{[%clk 0:02:51.5]} 8... Bxe2 {[%clk 0:02:42]} 9. Kxe2 {[%clk 0:02:52.4]} 9...
Nh6 {[%clk 0:02:36]} 10. d3 {[%clk 0:02:51.7]} 10... a6 {[%clk 0:02:26.7]} 11.
Nd2 {[%clk 0:02:49]} 11... Be7 {[%clk 0:02:24]} 12. Nc4 {[%clk 0:02:47.9]} 12...
Rd5 {[%clk 0:02:19.5]} 13. Rd1 {[%clk 0:02:46.4]} 13... Bxg5 {[%clk 0:02:14.6]}
14. Bxg5 {[%clk 0:02:45.9]} 14... Nf5 {[%clk 0:02:14.9]} 15. Ne3 {[%clk
0:02:38.1]} 15... Nxe3 {[%clk 0:02:15.1]} 16. fxe3 {[%clk 0:02:39]} 16... f6
{[%clk 0:02:13.6]} 17. Bh4 {[%clk 0:02:38.9]} 17... Rb5 {[%clk 0:02:08.7]} 18.
b4 {[%clk 0:02:21.5]} 18... a5 {[%clk 0:02:01.7]} 19. bxa5 {[%clk 0:02:21.1]}
19... Rxb2+ {[%clk 0:02:01.9]} 20. Rd2 {[%clk 0:02:21.6]} 20... Rb3 {[%clk
0:01:53.4]} 21. Rc2 {[%clk 0:02:17.4]} 21... Kd7 {[%clk 0:01:53.3]} 22. Be1
{[%clk 0:02:11.2]} 22... Ra8 {[%clk 0:01:47]} 23. Rca2 {[%clk 0:02:09.2]} 23...
Ra6 {[%clk 0:01:26.2]} 24. Bd2 {[%clk 0:02:06.5]} 24... Rb5 {[%clk 0:01:13.8]}
25. c4 {[%clk 0:01:58.3]} 25... Rb3 {[%clk 0:01:13.9]} 26. Ra3 {[%clk
0:01:57.9]} 26... Rxa3 {[%clk 0:01:12.6]} 27. Rxa3 {[%clk 0:01:58.8]} 27... b6
{[%clk 0:01:11.1]} 28. Kd1 {[%clk 0:01:56.5]} 28... Nxa5 {[%clk 0:00:59.5]} 29.
Kc2 {[%clk 0:01:56.3]} 29... Kc6 {[%clk 0:00:56.6]} 30. Bb4 {[%clk 0:01:54.7]}
30... Kb7 {[%clk 0:00:53.6]} 31. Bf8 {[%clk 0:01:53.9]} 31... Ra8 {[%clk
0:00:45.2]} 32. Bxg7 {[%clk 0:01:50.9]} 32... Rg8 {[%clk 0:00:45.4]} 33. Bxf6
{[%clk 0:01:51.3]} 33... Rxg2+ {[%clk 0:00:46.3]} 34. Kc3 {[%clk 0:01:51.8]}
34... Nc6 {[%clk 0:00:43.9]} 35. h4 {[%clk 0:01:47.4]} 35... h6 {[%clk
0:00:43.6]} 36. Ra1 {[%clk 0:01:38.4]} 36... Rf2 {[%clk 0:00:38.9]} 37. Bg7
{[%clk 0:01:37.3]} 37... h5 {[%clk 0:00:39.2]} 38. Bh6 {[%clk 0:01:37.1]} 38...
Rh2 {[%clk 0:00:33.1]} 39. Bg5 {[%clk 0:01:36.2]} 39... Nb8 {[%clk 0:00:32.1]}
40. Rf1 {[%clk 0:01:35.6]} 40... Nd7 {[%clk 0:00:32]} 41. Rf7 {[%clk 0:01:33.2]}
41... Nc5 {[%clk 0:00:32.1]} 42. Re7 {[%clk 0:01:29.7]} 42... Ra2 {[%clk
0:00:29.1]} 43. d4 {[%clk 0:01:20.4]} 43... exd4+ {[%clk 0:00:23.6]} 44. exd4
{[%clk 0:01:21.3]} 44... Na6 {[%clk 0:00:19.8]} 45. Rh7 {[%clk 0:01:20.5]} 45...
Ra3+ {[%clk 0:00:18.3]} 46. Kb2 {[%clk 0:01:20]} 46... Rd3 {[%clk 0:00:18.5]}
47. Bf6 {[%clk 0:01:17.6]} 47... Nb4 {[%clk 0:00:15.4]} 48. Be5 {[%clk
0:01:16.8]} 48... Ka6 {[%clk 0:00:11.7]} 49. Rxc7 {[%clk 0:01:13.3]} 49... Rh3
{[%clk 0:00:11.9]} 50. Bf6 {[%clk 0:01:13.5]} 50... Nd3+ {[%clk 0:00:11.8]} 51.
Kb1 {[%clk 0:01:13.8]} 51... Rh2 {[%clk 0:00:07.9]} 52. d5 {[%clk 0:01:11.2]}
52... Nc5 {[%clk 0:00:08.2]} 53. Rh7 {[%clk 0:01:10.7]} 53... Ne4 {[%clk
0:00:07.5]} 54. Bb2 {[%clk 0:01:09.7]} 54... Nd2+ {[%clk 0:00:07.4]} 55. Ka2
{[%clk 0:01:08.7]} 55... Nxc4 {[%clk 0:00:07.7]} 56. Kb3 {[%clk 0:01:07.8]}
56... Nxb2 {[%clk 0:00:07.6]} 57. d6 {[%clk 0:01:08.3]} 57... Rd2 {[%clk
0:00:06.3]} 58. Kc3 {[%clk 0:01:06]} 58... Rxd6 {[%clk 0:00:05.2]} 59. Kxb2
{[%clk 0:01:06.4]} 59... Rd5 {[%clk 0:00:05.8]} 60. Kc3 {[%clk 0:01:06.1]} 60...
Kb5 {[%clk 0:00:05.4]} 61. Rh8 {[%clk 0:01:06.4]} 61... Rf5 {[%clk 0:00:05.2]}
62. Rg8 {[%clk 0:01:05.3]} 62... Kc5 {[%clk 0:00:05.3]} 63. Rc8+ {[%clk
0:01:01.9]} 63... Kd5 {[%clk 0:00:05.5]} 64. Rb8 {[%clk 0:01:02.2]} 64... Rf6
{[%clk 0:00:03.9]} 65. Rh8 {[%clk 0:01:01.6]} 65... Rf5 {[%clk 0:00:04.2]} 66.
Rh6 {[%clk 0:01:01.1]} 66... b5 {[%clk 0:00:03.7]} 67. Kb4 {[%clk 0:01:01.5]}
67... Ke4 {[%clk 0:00:04.2]} 68. Rh8 {[%clk 0:01:00.1]} 68... Kf4 {[%clk
0:00:04.7]} 69. Rg8 {[%clk 0:01:00.7]} 69... Kf3 {[%clk 0:00:05.2]} 70. Rg5
{[%clk 0:01:00.1]} 70... Rxg5 {[%clk 0:00:02.8]} 71. hxg5 {[%clk 0:01:01]} 71...
h4 {[%clk 0:00:03.7]} 72. g6 {[%clk 0:01:01.5]} 72... h3 {[%clk 0:00:04.6]} 73.
g7 {[%clk 0:01:02.4]} 73... h2 {[%clk 0:00:05.5]} 74. g8=Q {[%clk 0:01:02.2]}
74... h1=Q {[%clk 0:00:06.4]} 75. Qa8+ {[%clk 0:01:02.5]} 1-0

[Event "Late-Titled-Tuesday-Blitz-July-09-2024"]
[Site "Chess.com"]
[Date "2024.07.09"]
[Round "4"]
[White "evgchess5"]
[Black "GHANDEEVAM2003"]
[Result "0-1"]
[WhiteElo "2859"]
[BlackElo "3181"]
[TimeControl "180+1"]
[EndTime "14:39:57 PDT"]
[Termination "GHANDEEVAM2003 won on time"]

1. e4 {[%clk 0:03:00.9]} 1... c6 {[%clk 0:03:00.1]} 2. d4 {[%clk 0:03:00.2]}
2... d5 {[%clk 0:03:01]} 3. exd5 {[%clk 0:03:00.4]} 3... cxd5 {[%clk 0:03:01.9]}
4. Bd3 {[%clk 0:03:00.9]} 4... Nc6 {[%clk 0:03:01.9]} 5. c3 {[%clk 0:03:01.1]}
5... g6 {[%clk 0:03:02.4]} 6. Nf3 {[%clk 0:02:59.8]} 6... Bf5 {[%clk 0:03:02.9]}
7. O-O {[%clk 0:02:59.3]} 7... Nf6 {[%clk 0:03:01.8]} 8. Re1 {[%clk 0:02:55.5]}
8... e6 {[%clk 0:02:59.7]} 9. Bf4 {[%clk 0:02:52]} 9... Nh5 {[%clk 0:02:53.3]}
10. Bg5 {[%clk 0:02:44]} 10... Qb6 {[%clk 0:02:52.6]} 11. Bxf5 {[%clk 0:02:15]}
11... gxf5 {[%clk 0:02:53.5]} 12. Nbd2 {[%clk 0:01:52.5]} 12... Rg8 {[%clk
0:02:51.9]} 13. Nb3 {[%clk 0:01:42.7]} 13... Bd6 {[%clk 0:02:36.7]} 14. Rc1
{[%clk 0:01:38.8]} 14... Qb5 {[%clk 0:02:00.2]} 15. c4 {[%clk 0:01:21.3]} 15...
dxc4 {[%clk 0:01:59.7]} 16. d5 {[%clk 0:01:21.7]} 16... Ne5 {[%clk 0:00:56.4]}
17. Nxe5 {[%clk 0:01:01.6]} 17... Rxg5 {[%clk 0:00:56.1]} 18. dxe6 {[%clk
0:00:56.4]} 18... Rd8 {[%clk 0:00:48.4]} 19. exf7+ {[%clk 0:00:31.8]} 19... Kf8
{[%clk 0:00:48.6]} 20. Nd4 {[%clk 0:00:32.4]} 20... Qd5 {[%clk 0:00:39.3]} 21.
Nef3 {[%clk 0:00:32.2]} 21... Rg6 {[%clk 0:00:29.9]} 22. Qc2 {[%clk 0:00:09.5]}
22... Nf4 {[%clk 0:00:26.2]} 23. Qxf5 {[%clk 0:00:05.3]} 23... Rxg2+ {[%clk
0:00:11.8]} 24. Kf1 {[%clk 0:00:05.5]} 24... Qxf7 {[%clk 0:00:06]} 25. Qxf7+
{[%clk 0:00:02.9]} 25... Kxf7 {[%clk 0:00:06.9]} 26. Rxc4 {[%clk 0:00:03.4]}
26... Rdg8 {[%clk 0:00:06.8]} 27. Nf5 {[%clk 0:00:03.4]} 27... Bb8 {[%clk
0:00:06.8]} 28. Nh6+ {[%clk 0:00:03.5]} 28... Kf6 {[%clk 0:00:06.5]} 29. Nxg8+
{[%clk 0:00:03.8]} 29... Rxg8 {[%clk 0:00:07.4]} 30. Ree4 {[%clk 0:00:04.1]}
30... Ne6 {[%clk 0:00:07]} 31. Rg4 {[%clk 0:00:03.9]} 31... Rd8 {[%clk
0:00:07.2]} 32. Rc1 {[%clk 0:00:03.9]} 32... h5 {[%clk 0:00:06.4]} 33. Rgc4
{[%clk 0:00:04]} 33... Bf4 {[%clk 0:00:05.2]} 34. Re1 {[%clk 0:00:04.4]} 34...
Bb8 {[%clk 0:00:05.2]} 35. Rce4 {[%clk 0:00:04.5]} 35... Nf4 {[%clk 0:00:05.2]}
36. Rd4 {[%clk 0:00:04.8]} 36... Rc8 {[%clk 0:00:05.8]} 37. Rd7 {[%clk
0:00:04.8]} 37... b6 {[%clk 0:00:05.6]} 38. Rb7 {[%clk 0:00:04.2]} 38... Bd6
{[%clk 0:00:05.2]} 39. Rd1 {[%clk 0:00:04]} 39... Bc5 {[%clk 0:00:03.1]} 40.
Rxa7 {[%clk 0:00:03.9]} 40... Rg8 {[%clk 0:00:03.6]} 41. Rc7 {[%clk 0:00:03.5]}
41... Rg2 {[%clk 0:00:03]} 42. Rc6+ {[%clk 0:00:03.2]} 42... Ke7 {[%clk
0:00:02.8]} 43. Nd4 {[%clk 0:00:02.5]} 43... Rxh2 {[%clk 0:00:02.7]} 44. Nf5+
{[%clk 0:00:02.6]} 44... Ke8 {[%clk 0:00:02.1]} 45. Ke1 {[%clk 0:00:01.6]} 45...
Bxf2+ {[%clk 0:00:01.1]} 46. Kd2 {[%clk 0:00:01.9]} 46... Bd4+ {[%clk
0:00:01.6]} 47. Kc1 {[%clk 0:00:01.2]} 47... Bxb2+ {[%clk 0:00:02.2]} 48. Kb1
{[%clk 0:00:01.5]} 48... Ba3 {[%clk 0:00:03.1]} 0-1

[Event "Late-Titled-Tuesday-Blitz-July-09-2024"]
[Site "Chess.com"]
[Date "2024.07.09"]
[Round "4"]
[White "ChessBrainiacOnTwitch"]
[Black "legendisback1"]
[Result "0-1"]
[WhiteElo "2818"]
[BlackElo "3037"]
[TimeControl "180+1"]
[EndTime "14:39:59 PDT"]
[Termination "legendisback1 won by resignation"]

1. e4 {[%clk 0:03:00.9]} 1... g6 {[%clk 0:02:57.1]} 2. d4 {[%clk 0:03:01.1]}
2... c6 {[%clk 0:02:56.8]} 3. Nc3 {[%clk 0:03:01.4]} 3... d5 {[%clk 0:02:57.7]}
4. e5 {[%clk 0:03:01.7]} 4... Bg7 {[%clk 0:02:57.9]} 5. f4 {[%clk 0:03:02.2]}
5... h5 {[%clk 0:02:56.7]} 6. Bd3 {[%clk 0:03:02.3]} 6... Nh6 {[%clk 0:02:57.3]}
7. Nf3 {[%clk 0:03:02.2]} 7... Bg4 {[%clk 0:02:54.7]} 8. Be3 {[%clk 0:03:02.3]}
8... e6 {[%clk 0:02:52.8]} 9. O-O {[%clk 0:03:00.9]} 9... Nf5 {[%clk 0:02:51.8]}
10. Bf2 {[%clk 0:03:01]} 10... Nd7 {[%clk 0:02:46.8]} 11. h3 {[%clk 0:02:57.5]}
11... Bxf3 {[%clk 0:02:43.8]} 12. Qxf3 {[%clk 0:02:58.4]} 12... Qb6 {[%clk
0:02:34.8]} 13. Ne2 {[%clk 0:02:42.3]} 13... h4 {[%clk 0:02:18.6]} 14. c3 {[%clk
0:02:38.9]} 14... a5 {[%clk 0:02:07.8]} 15. Rab1 {[%clk 0:02:38.9]} 15... Bf8
{[%clk 0:02:05.4]} 16. b3 {[%clk 0:02:27.3]} 16... Be7 {[%clk 0:01:54.5]} 17.
Kh2 {[%clk 0:02:26.8]} 17... O-O {[%clk 0:01:41]} 18. Qg4 {[%clk 0:02:15.2]}
18... Nh6 {[%clk 0:01:40.2]} 19. Qf3 {[%clk 0:02:14.2]} 19... a4 {[%clk
0:01:39.4]} 20. b4 {[%clk 0:02:10.6]} 20... Qc7 {[%clk 0:01:35.3]} 21. Ng1
{[%clk 0:02:02.1]} 21... b6 {[%clk 0:01:32.6]} 22. Qe2 {[%clk 0:02:01.7]} 22...
c5 {[%clk 0:01:07.2]} 23. Nf3 {[%clk 0:02:02]} 23... Rfc8 {[%clk 0:00:58.9]} 24.
Bxh4 {[%clk 0:01:57.3]} 24... Bxh4 {[%clk 0:00:58.2]} 25. Nxh4 {[%clk
0:01:58.2]} 25... cxd4 {[%clk 0:00:57.6]} 26. cxd4 {[%clk 0:01:59.1]} 26... Qc3
{[%clk 0:00:53]} 27. Nf3 {[%clk 0:01:58.1]} 27... Qa3 {[%clk 0:00:52]} 28. g4
{[%clk 0:01:38.3]} 28... Rc3 {[%clk 0:00:50.4]} 29. Rfd1 {[%clk 0:01:32.5]}
29... Rac8 {[%clk 0:00:47.7]} 30. f5 {[%clk 0:01:19.2]} 30... exf5 {[%clk
0:00:41.5]} 31. g5 {[%clk 0:01:17.2]} 31... Nf8 {[%clk 0:00:21.2]} 32. gxh6
{[%clk 0:01:15.9]} 32... Ne6 {[%clk 0:00:22.1]} 33. Qd2 {[%clk 0:00:47.2]} 33...
Rxd3 {[%clk 0:00:18.8]} 34. Qxd3 {[%clk 0:00:44.7]} 34... Rc3 {[%clk 0:00:19.4]}
35. h7+ {[%clk 0:00:13.4]} 35... Kxh7 {[%clk 0:00:18]} 36. Qe2 {[%clk
0:00:06.7]} 36... Rxf3 {[%clk 0:00:18.1]} 37. Rb3 {[%clk 0:00:05]} 37... axb3
{[%clk 0:00:13.8]} 38. Qxf3 {[%clk 0:00:05.1]} 38... Qxa2+ {[%clk 0:00:14.2]}
39. Kh1 {[%clk 0:00:02.6]} 39... b2 {[%clk 0:00:11.5]} 40. Qf1 {[%clk
0:00:02.9]} 40... Qc4 {[%clk 0:00:08.7]} 41. Qf3 {[%clk 0:00:01.2]} 41... Qc2
{[%clk 0:00:08.4]} 42. Qf1 {[%clk 0:00:01.8]} 42... Nxd4 {[%clk 0:00:05.8]} 43.
e6 {[%clk 0:00:01.2]} 43... Nxe6 {[%clk 0:00:04.4]} 44. Rb1 {[%clk 0:00:02]}
44... Ng5 {[%clk 0:00:03.1]} 45. Qd1 {[%clk 0:00:01.8]} 45... Qxd1+ {[%clk
0:00:02.2]} 46. Rxd1 {[%clk 0:00:02.7]} 46... Ne4 {[%clk 0:00:02.8]} 47. Rb1
{[%clk 0:00:02.4]} 47... Nf2+ {[%clk 0:00:03.4]} 48. Kg2 {[%clk 0:00:02.4]}
48... Nd3 {[%clk 0:00:04.3]} 49. Kf3 {[%clk 0:00:03.2]} 49... d4 {[%clk
0:00:03.2]} 50. Ke2 {[%clk 0:00:02.1]} 50... Ne5 {[%clk 0:00:02.9]} 51. Rxb2
{[%clk 0:00:02]} 51... d3+ {[%clk 0:00:03.8]} 52. Kd1 {[%clk 0:00:02.2]} 52...
f4 {[%clk 0:00:04.4]} 53. Ra2 {[%clk 0:00:01.7]} 53... f3 {[%clk 0:00:05]} 54.
Rh2 {[%clk 0:00:01.7]} 54... Kh6 {[%clk 0:00:04.6]} 55. Kd2 {[%clk 0:00:02.3]}
55... Kg5 {[%clk 0:00:05.5]} 56. Ke3 {[%clk 0:00:02.9]} 56... Kh4 {[%clk
0:00:05.2]} 57. Kf4 {[%clk 0:00:02.3]} 57... g5+ {[%clk 0:00:02.9]} 58. Ke3
{[%clk 0:00:01.2]} 58... Kg3 {[%clk 0:00:03.7]} 59. Rd2 {[%clk 0:00:01.8]} 59...
Nc4+ {[%clk 0:00:04]} 0-1

[Event "Late-Titled-Tuesday-Blitz-July-09-2024"]
[Site "Chess.com"]
[Date "2024.07.09"]
[Round "4"]
[White "djano"]
[Black "JavierRuizVazquez"]
[Result "1-0"]
[WhiteElo "2595"]
[BlackElo "2419"]
[TimeControl "180+1"]
[EndTime "14:40:04 PDT"]
[Termination "djano won by checkmate"]

1. e4 {[%clk 0:03:00.9]} 1... c6 {[%clk 0:02:59.8]} 2. d3 {[%clk 0:02:58.2]}
2... d5 {[%clk 0:03:00.2]} 3. Bf4 {[%clk 0:02:58.1]} 3... Nd7 {[%clk 0:02:50.4]}
4. Nf3 {[%clk 0:02:51.1]} 4... g6 {[%clk 0:02:43.3]} 5. exd5 {[%clk 0:02:48.6]}
5... cxd5 {[%clk 0:02:43.2]} 6. d4 {[%clk 0:02:47.7]} 6... Bg7 {[%clk 0:02:37]}
7. Nc3 {[%clk 0:02:44.4]} 7... Ngf6 {[%clk 0:02:36]} 8. Nb5 {[%clk 0:02:40.4]}
8... O-O {[%clk 0:02:32.7]} 9. Bc7 {[%clk 0:02:36.8]} 9... Qe8 {[%clk
0:02:31.4]} 10. Bg3 {[%clk 0:02:35.2]} 10... Qd8 {[%clk 0:02:29.3]} 11. Bd3
{[%clk 0:02:25]} 11... a6 {[%clk 0:02:04.2]} 12. Nc3 {[%clk 0:02:19.6]} 12...
Qb6 {[%clk 0:01:51.4]} 13. O-O {[%clk 0:02:13]} 13... Qxb2 {[%clk 0:01:38.6]}
14. Qd2 {[%clk 0:02:13.3]} 14... Qb6 {[%clk 0:01:29.6]} 15. Rfe1 {[%clk
0:02:13]} 15... e6 {[%clk 0:01:21.3]} 16. a4 {[%clk 0:01:56.9]} 16... Nh5 {[%clk
0:01:17.9]} 17. Be5 {[%clk 0:01:48.1]} 17... Bxe5 {[%clk 0:00:58.2]} 18. dxe5
{[%clk 0:01:46.4]} 18... Qc7 {[%clk 0:00:39.1]} 19. Ra3 {[%clk 0:01:21.2]} 19...
Kg7 {[%clk 0:00:26]} 20. g4 {[%clk 0:01:18.6]} 20... Nhf6 {[%clk 0:00:22.8]} 21.
exf6+ {[%clk 0:01:17.1]} 21... Nxf6 {[%clk 0:00:23.7]} 22. Ne5 {[%clk
0:01:16.8]} 22... b6 {[%clk 0:00:19.5]} 23. Qf4 {[%clk 0:01:14.6]} 23... Bb7
{[%clk 0:00:17.5]} 24. Re3 {[%clk 0:01:04.1]} 24... Qc5 {[%clk 0:00:14.6]} 25.
Qxf6+ {[%clk 0:00:57.9]} 25... Kxf6 {[%clk 0:00:12.9]} 26. Nd7+ {[%clk
0:00:58.8]} 26... Kg7 {[%clk 0:00:13.5]} 27. Nxc5 {[%clk 0:00:59.2]} 27... bxc5
{[%clk 0:00:14.4]} 28. Re1 {[%clk 0:00:56.2]} 28... c4 {[%clk 0:00:14.3]} 29.
Bf1 {[%clk 0:00:54.6]} 29... Bc6 {[%clk 0:00:14.3]} 30. Raa1 {[%clk 0:00:53.1]}
30... Rfb8 {[%clk 0:00:14.8]} 31. Rab1 {[%clk 0:00:53.5]} 31... Kf8 {[%clk
0:00:13.1]} 32. a5 {[%clk 0:00:50.9]} 32... Ke7 {[%clk 0:00:10.1]} 33. f4 {[%clk
0:00:51.4]} 33... Kd6 {[%clk 0:00:10.1]} 34. Kf2 {[%clk 0:00:50.5]} 34... f6
{[%clk 0:00:05.7]} 35. g5 {[%clk 0:00:47.2]} 35... fxg5 {[%clk 0:00:05.2]} 36.
fxg5 {[%clk 0:00:48.1]} 36... e5 {[%clk 0:00:04.7]} 37. Rbd1 {[%clk 0:00:46]}
37... Kc5 {[%clk 0:00:03.9]} 38. Nxd5 {[%clk 0:00:45.9]} 38... Rf8+ {[%clk
0:00:02.6]} 39. Kg3 {[%clk 0:00:45.1]} 39... Bxd5 {[%clk 0:00:02.2]} 40. Rxe5
{[%clk 0:00:45.4]} 40... Rad8 {[%clk 0:00:02.5]} 41. Bg2 {[%clk 0:00:45.8]}
41... Rf5 {[%clk 0:00:01.8]} 42. Re7 {[%clk 0:00:42.5]} 42... Bxg2 {[%clk
0:00:01.3]} 43. Rxd8 {[%clk 0:00:42.3]} 43... Bc6 {[%clk 0:00:01.4]} 44. h4
{[%clk 0:00:39.8]} 44... Rf3+ {[%clk 0:00:01.9]} 45. Kg4 {[%clk 0:00:39.5]}
45... Ra3 {[%clk 0:00:02.8]} 46. Rc7 {[%clk 0:00:39.1]} 46... Kb5 {[%clk
0:00:03.4]} 47. Rb8+ {[%clk 0:00:38.8]} 47... Kc5 {[%clk 0:00:03.1]} 48. Rbc8
{[%clk 0:00:39.3]} 48... Rxa5 {[%clk 0:00:03.4]} 49. Rxc6+ {[%clk 0:00:38.7]}
49... Kb4 {[%clk 0:00:04.3]} 50. Kg3 {[%clk 0:00:38.1]} 50... Ka3 {[%clk
0:00:05.1]} 51. Rxc4 {[%clk 0:00:37.9]} 51... Rd5 {[%clk 0:00:05.1]} 52. R8c5
{[%clk 0:00:36.6]} 52... Rd7 {[%clk 0:00:04.6]} 53. Rc7 {[%clk 0:00:36.7]} 53...
Rd6 {[%clk 0:00:04.4]} 54. R4c6 {[%clk 0:00:36.3]} 54... Rd1 {[%clk 0:00:03.9]}
55. Rxa6+ {[%clk 0:00:36.5]} 55... Kb2 {[%clk 0:00:04.6]} 56. Rb6+ {[%clk
0:00:36.9]} 56... Kc1 {[%clk 0:00:04.9]} 57. Rxh7 {[%clk 0:00:35.9]} 57... Rd2
{[%clk 0:00:04.1]} 58. Rxg6 {[%clk 0:00:35.2]} 58... Re2 {[%clk 0:00:04.1]} 59.
Kg4 {[%clk 0:00:35.1]} 59... Kd2 {[%clk 0:00:04.4]} 60. Kh5 {[%clk 0:00:35.3]}
60... Re4 {[%clk 0:00:04.4]} 61. Rf6 {[%clk 0:00:35.7]} 61... Ke3 {[%clk
0:00:04.4]} 62. Rhf7 {[%clk 0:00:35.5]} 62... Kd2 {[%clk 0:00:04.9]} 63. Rf4
{[%clk 0:00:35.3]} 63... Re5 {[%clk 0:00:04.3]} 64. c4 {[%clk 0:00:35.4]} 64...
Kc3 {[%clk 0:00:04]} 65. Kh6 {[%clk 0:00:34.2]} 65... Kb4 {[%clk 0:00:03.2]} 66.
g6 {[%clk 0:00:34.4]} 66... Kc5 {[%clk 0:00:02.9]} 67. g7 {[%clk 0:00:34.8]}
67... Re6+ {[%clk 0:00:01.9]} 68. Kh7 {[%clk 0:00:35]} 68... Rh6+ {[%clk
0:00:01.1]} 69. Kxh6 {[%clk 0:00:33.7]} 69... Kd6 {[%clk 0:00:02]} 70. c5+
{[%clk 0:00:33.6]} 70... Ke5 {[%clk 0:00:02.9]} 71. g8=Q {[%clk 0:00:32.6]}
71... Ke6 {[%clk 0:00:03.8]} 72. Qe8+ {[%clk 0:00:32.5]} 72... Kd5 {[%clk
0:00:03.8]} 73. Qd7+ {[%clk 0:00:32.4]} 73... Ke5 {[%clk 0:00:04.2]} 74. R7f5#
{[%clk 0:00:32.2]} 1-0